bitfinex/quotes_SOLUSD_20240705
["timestamp","ask_amount","ask_price","bid_price","bid_amount"]
[1720139181077,7.8343,127.65,127.59,7.8376]
[1720139181277,45.0,127.64,127.59,7.8376]
[1720139181477,45.0,127.64,127.6,7.8369]
[1720139181682,45.0,127.65,127.59,19.5933]
[1720139181891,45.0,127.66,127.59,27.4303]
[1720139182196,7.8339,127.65,127.59,27.4306]
[1720139182396,45.0,127.66,127.59,19.5933]
[1720139182698,28.27183422,127.72,127.63,19.5871]
[1720139182868,7.8306,127.71,127.65,7.8338]
[1720139183068,29.8613,127.72,127.66,7.8331]
[1720139183365,22.0316,127.72,127.66,7.8331]
[1720139183571,7.8302,127.71,127.65,27.418]
[1720139183772,7.8315,127.69,127.63,7.8351]
[1720139183978,7.8309,127.7,127.64,7.8343]
[1720139184196,7.8309,127.7,127.62,19.5887]
[1720139184377,7.8315,127.69,127.63,7.8349]
[1720139184580,7.8325,127.68,127.62,27.4243]
[1720139184796,7.8337,127.66,127.59,19.5928]
[1720139185028,45.0,127.65,127.62,7.8356]
[1720139185294,45.0,127.65,127.6,7.8369]
[1720139185480,122.0316,127.72,127.59,39.1857]
[1720139185670,122.0316,127.72,127.64,7.8344]
[1720139185979,7.8334,127.66,127.59,19.593]
[1720139186173,7.8339,127.65,127.59,19.593]
[1720139186498,129.8614,127.72,127.64,19.5857]
[1720139186679,7.8302,127.71,127.64,19.5857]
[1720139186999,7.8322,127.68,127.62,7.8357]
[1720139187183,45.0,127.67,127.58,19.5946]
[1720139187379,7.8333,127.66,127.6,7.8368]
[1720139187596,7.8333,127.66,127.58,19.5946]
[1720139187597,45.0,127.65,127.58,19.5946]
[1720139187788,45.0,127.67,127.58,19.5946]
[1720139188098,7.8345,127.65,127.59,7.8374]
[1720139188604,45.0,127.64,127.59,7.8374]
[1720139188772,45.0,127.64,127.55,58.7984]
[1720139188773,22.5061,127.63,127.55,58.7984]
[1720139188971,7.8364,127.61,127.55,27.4392]
[1720139189174,7.8372,127.6,127.55,19.5993]
[1720139189402,45.0,127.59,127.54,7.8401]
[1720139189606,45.0,127.59,127.55,7.8395]
[1720139189809,45.0,127.59,127.56,7.8393]
[1720139190115,22.5061,127.63,127.58,7.8377]
[1720139190412,45.0,127.62,127.58,19.5948]
[1720139190877,45.0,127.62,127.58,27.4329]
[1720139191199,45.0,127.62,127.56,7.8393]
[1720139191509,7.8364,127.61,127.56,7.8393]
[1720139191690,45.0,127.6,127.56,7.8393]
[1720139191891,7.8364,127.61,127.55,27.4389]
[1720139192193,45.0,127.6,127.56,7.8394]
[1720139192391,45.0,127.6,127.57,19.5966]
[1720139192707,45.0,127.6,127.57,27.4353]
[1720139193009,45.0,127.6,127.55,7.8395]
[1720139193297,7.8359,127.62,127.56,7.8394]
[1720139193800,45.0,127.61,127.56,19.5975]
[1720139194009,45.0,127.62,127.58,7.8381]
[1720139194504,52.8359,127.62,127.56,27.4367]
[1720139194803,7.8419,127.52,127.51,0.1]
[1720139195011,7.8435,127.5,127.48,0.8366737]
[1720139195225,7.8437,127.49,127.48,0.8366737]
[1720139195395,52.8437,127.49,127.48,0.8366737]
[1720139196401,45.0,127.49,127.48,0.8366737]
[1720139196880,52.8437,127.49,127.48,0.8366737]
[1720139197186,19.611,127.48,127.41,0.1]
[1720139197410,7.8475,127.43,127.41,0.1]
[1720139198142,100.0,127.46,127.41,0.1]
[1720139198406,7.8473,127.44,127.41,0.1]
[1720139198625,45.0,127.43,127.41,0.1]
[1720139198911,7.848,127.42,127.41,0.1]
[1720139199088,45.0,127.42,127.41,0.1]
[1720139199283,16.5272,127.45,127.41,0.1]
[1720139199483,100.0,127.48,127.41,0.1]
[1720139199695,7.8451,127.47,127.41,19.7208]
[1720139199885,15.3145,127.5,127.41,19.7208]
[1720139200096,14.3143,127.49,127.42,7.8479]
[1720139200302,7.8444,127.48,127.42,7.8479]
[1720139200486,6.4701,127.49,127.41,19.7208]
[1720139200692,7.8448,127.48,127.41,27.569]
[1720139200916,14.3139,127.49,127.42,7.8475]
[1720139201289,6.4701,127.49,127.41,27.5688]
[1720139201612,100.0,127.48,127.41,0.1]
[1720139201795,7.8461,127.46,127.41,0.1]
[1720139201995,100.0,127.48,127.41,0.1]
[1720139202311,119.6121,127.48,127.41,0.1]
[1720139202483,45.0,127.47,127.41,0.1]
[1720139202688,100.0,127.46,127.41,0.1]
[1720139203002,7.848,127.42,127.41,0.1]
[1720139203199,145.0,127.42,127.32,19.6348]
[1720139203404,100.0,127.42,127.32,19.6348]
[1720139203704,7.8512,127.37,127.32,19.6348]
[1720139203888,7.8506,127.38,127.32,27.4889]
[1720139204289,100.0,127.4,127.32,19.6348]
[1720139204508,45.0,127.39,127.32,19.6348]
[1720139204811,7.8524,127.35,127.31,0.1]
[1720139205014,19.6268,127.38,127.31,0.1]
[1720139205318,142.085,127.41,127.31,0.1]
[1720139205634,45.0,127.4,127.32,27.4883]
[1720139205937,7.8505,127.38,127.32,27.4884]
[1720139206114,45.0,127.37,127.32,27.4884]
[1720139206312,45.0,127.37,127.31,0.1]
[1720139206729,7.8524,127.35,127.31,0.1]
[1720139207031,45.0,127.38,127.31,0.1]
[1720139207225,7.8524,127.35,127.31,0.1]
[1720139207547,45.0,127.34,127.31,0.1]
[1720139208159,52.853,127.34,127.31,0.1]
[1720139208431,45.0,127.34,127.31,0.1]
[1720139208854,52.8534,127.34,127.31,0.1]
[1720139209445,7.8536,127.33,127.31,0.1]
[1720139209617,52.8542,127.32,127.31,0.1]
[1720139210318,7.8561,127.29,127.25,0.04656524]
[1720139210526,7.8562,127.29,127.25,0.04656524]
[1720139210821,7.8556,127.3,127.25,0.04656524]
[1720139211028,45.0,127.29,127.25,0.04656524]
[1720139211620,6.0669,127.32,127.25,0.04656524]
[1720139211826,139.0,127.36,127.25,0.04656524]
[1720139212034,7.8531,127.34,127.26,19.644]
[1720139212339,7.8542,127.32,127.25,0.04656524]
[1720139212634,26.124,127.37,127.27,7.8571]
[1720139212932,26.124,127.37,127.28,7.8566]
[1720139213115,158.6233,127.4,127.26,86.2773]
[1720139213320,158.6233,127.4,127.31,7.8548]
[1720139213517,158.6233,127.4,127.3,7.8553]
[1720139213823,7.8516,127.37,127.3,7.8553]
[1720139214028,139.0,127.4,127.28,19.641]
[1720139214230,7.8532,127.34,127.28,27.4972]
[1720139214734,7.8525,127.35,127.29,7.856]
[1720139215530,7.8518,127.36,127.3,7.8552]
[1720139215933,7.854,127.33,127.27,7.8571]
[1720139216113,39.0,127.4,127.25,27.55036524]
[1720139216114,7.855,127.31,127.25,27.55036524]
[1720139216417,7.8554,127.3,127.25,0.04656524]
[1720139216622,7.855,127.31,127.25,7.90496524]
[1720139216944,19.6299,127.36,127.26,7.8573]
[1720139217122,7.8542,127.32,127.27,7.8572]
[1720139217326,7.8542,127.32,127.26,7.8577]
[1720139217510,7.8531,127.34,127.28,7.8566]
[1720139217711,7.8541,127.33,127.27,7.8572]
[1720139217934,52.8543,127.32,127.27,7.8572]
[1720139218235,7.8543,127.32,127.27,7.8572]
[1720139218732,145.0,127.35,127.25,0.04656524]
[1720139218733,45.0,127.31,127.25,0.04656524]
[1720139218939,7.8533,127.34,127.28,7.8566]
[1720139219135,7.8509,127.38,127.32,7.8539]
[1720139219347,7.8499,127.4,127.33,7.8534]
[1720139219523,7.8505,127.39,127.32,27.4883]
[1720139219839,37.508906,127.41,127.33,7.8535]
[1720139220039,7.85,127.39,127.33,7.8535]
[1720139220243,19.6235,127.4,127.29,19.6393]
[1720139220542,7.8505,127.38,127.33,19.6333]
[1720139220749,6.0541,127.41,127.3,20.0]
[1720139220750,7.8512,127.37,127.3,19.6374]
[1720139221049,7.8532,127.34,127.28,12.0948]
[1720139221217,19.6253,127.39,127.28,12.0947]
[1720139221420,7.8534,127.34,127.28,12.0947]
[1720139221614,7.8521,127.36,127.3,7.8548]
[1720139221809,7.8518,127.36,127.29,19.6398]
[1720139222027,45.0,127.35,127.29,19.6398]
[1720139222253,7.8512,127.37,127.31,19.6368]
[1720139222554,19.6343,127.4,127.31,19.6368]
[1720139222714,7.8503,127.39,127.33,7.8531]
[1720139222918,139.2578,127.4,127.31,19.6368]
[1720139223116,100.0,127.38,127.3,7.8553]
[1720139223422,100.0,127.38,127.29,7.8558]
[1720139223616,139.2578,127.4,127.3,7.8552]
[1720139223946,7.8501,127.39,127.33,7.8535]
[1720139224433,19.6343,127.4,127.35,7.8522]
[1720139224620,19.6343,127.4,127.36,7.8516]
[1720139224819,19.6343,127.4,127.31,19.636]
[1720139225051,7.8509,127.38,127.32,7.8538]
[1720139225340,7.8511,127.37,127.32,7.8538]
[1720139225654,119.6238,127.4,127.28,23.8788]
[1720139225956,119.6267,127.38,127.28,4.2384]
[1720139226246,7.8533,127.34,127.28,12.0946]
[1720139226439,7.8533,127.34,127.29,7.856]
[1720139226621,7.8525,127.35,127.3,7.8553]
[1720139226817,45.0,127.34,127.29,19.6397]
[1720139227244,52.853,127.34,127.29,19.6397]
[1720139227562,52.853,127.34,127.25,0.04656524]
[1720139227563,100.0,127.32,127.25,0.04656524]
[1720139227769,7.8579,127.26,127.25,0.04656524]
[1720139227934,19.6372,127.31,127.25,0.04656524]
[1720139228140,7.856,127.29,127.25,0.04656524]
[1720139228434,7.8574,127.27,127.25,0.04656524]
[1720139228636,52.8579,127.26,127.25,0.04656524]
[1720139229665,100.0,127.29,127.25,0.04656524]
[1720139229958,45.0,127.28,127.25,0.04656524]
[1720139230338,7.8574,127.27,127.25,0.04656524]
[1720139230559,45.0,127.26,127.25,0.04656524]
[1720139231059,52.8579,127.26,127.25,0.04656524]
[1720139231753,52.8579,127.26,127.21,0.1]
[1720139231754,7.8601,127.23,127.21,0.1]
[1720139231959,7.8603,127.22,127.21,0.1]
[1720139232142,152.8603,127.22,127.21,0.1]
[1720139232737,145.0,127.22,127.12,19.6655]
[1720139232944,145.0,127.22,127.11,0.1]
[1720139232945,100.0,127.19,127.11,0.1]
[1720139233171,45.0,127.18,127.11,0.1]
[1720139233338,45.0,127.18,127.11,19.7672]
[1720139233542,145.0,127.18,127.11,0.1]
[1720139234075,7.8654,127.14,127.11,0.1]
[1720139234355,145.0,127.18,127.01,0.1]
[1720139234356,106.0644,127.12,127.01,0.1]
[1720139234567,7.8683,127.1,127.04,7.8714]
[1720139234947,45.0,127.09,127.04,7.8714]
[1720139235162,139.0,127.16,127.01,0.1]
[1720139235366,100.0,127.14,127.06,19.675]
[1720139235555,45.0,127.13,127.06,19.675]
[1720139235750,52.866,127.13,127.06,19.675]
[1720139235954,7.8683,127.1,127.03,19.68]
[1720139236152,7.8683,127.1,127.04,7.8712]
[1720139236464,7.8685,127.09,127.02,7.8721]
[1720139236662,52.8685,127.09,127.01,0.1]
[1720139236863,45.0,127.09,127.02,19.6808]
[1720139237168,45.0,127.09,127.03,7.8716]
[1720139237466,39.0,127.13,127.04,19.6779]
[1720139237673,7.8666,127.12,127.06,7.8698]
[1720139237845,100.0,127.14,127.01,0.1]
[1720139238046,121.1685,127.17,127.08,19.6719]
[1720139238350,7.8642,127.16,127.1,7.8676]
[1720139239044,100.0,127.21,127.1,19.6687]
[1720139239249,7.8617,127.2,127.14,7.8653]
[1720139239665,7.8616,127.2,127.14,27.5271]
[1720139239967,6.0644,127.22,127.14,19.6619]
[1720139240148,7.8616,127.2,127.14,19.6619]
[1720139240465,7.8618,127.2,127.14,19.6619]
[1720139240952,100.0,127.21,127.11,19.6669]
[1720139241155,6.0644,127.22,127.08,19.6724]
[1720139241156,119.6556,127.19,127.08,19.6724]
[1720139241455,7.8651,127.15,127.09,7.8679]
[1720139241642,45.0,127.14,127.09,7.8679]
[1720139241843,45.0,127.14,127.1,7.8677]
[1720139242062,45.0,127.15,127.1,19.669]
[1720139242244,7.8629,127.18,127.13,7.8653]
[1720139242456,100.0,127.21,127.14,7.8651]
[1720139242775,6.0644,127.22,127.15,7.8644]
[1720139243074,31.506297,127.21,127.16,7.864]
[1720139243273,131.506297,127.21,127.14,27.5278]
[1720139243454,131.506297,127.21,127.14,19.6626]
[1720139243455,7.8623,127.19,127.14,19.6626]
[1720139243978,7.8623,127.19,127.14,27.5278]
[1720139244274,7.8618,127.2,127.14,27.5278]
[1720139244566,145.0,127.19,127.11,19.6672]
[1720139244745,7.8636,127.17,127.12,7.8664]
[1720139244943,7.8648,127.15,127.1,7.8677]
[1720139245187,7.8655,127.14,127.08,19.6719]
[1720139245369,7.866,127.13,127.08,27.5408]
[1720139245558,7.8654,127.14,127.08,27.5408]
[1720139245754,45.0,127.16,127.06,39.3489]
[1720139245755,45.0,127.16,127.1,19.6689]
[1720139245960,52.8642,127.16,127.1,27.5367]
[1720139246248,45.0,127.16,127.13,7.8659]
[1720139246481,7.8617,127.2,127.09,39.3397]
[1720139246779,7.8622,127.19,127.14,27.5277]
[1720139247078,7.8622,127.19,127.14,19.663]
[1720139247282,100.0,127.19,127.11,19.667]
[1720139247454,7.8636,127.17,127.11,27.534]
[1720139247654,7.863,127.18,127.12,7.8664]
[1720139248374,7.8623,127.19,127.13,7.8659]
[1720139248675,45.0,127.18,127.13,7.8659]
[1720139249060,37.567017,127.22,127.09,39.3404]
[1720139249061,31.502617,127.22,127.09,46.99]
[1720139249260,6.032,127.26,127.12,4.2384]
[1720139249571,7.8611,127.21,127.15,7.8642]
[1720139249746,100.0,127.24,127.16,7.864]
[1720139249951,7.8596,127.24,127.16,19.6595]
[1720139250149,7.8596,127.24,127.18,7.8627]
[1720139250367,100.0,127.24,127.17,7.8633]
[1720139250564,7.8604,127.22,127.16,27.5234]
[1720139250765,7.8616,127.2,127.14,7.8652]
[1720139250957,7.8629,127.18,127.13,19.6637]
[1720139251161,100.0,127.2,127.1,19.6687]
[1720139251375,7.8635,127.17,127.1,19.6687]
[1720139251581,45.0,127.16,127.11,7.8671]
[1720139252062,45.0,127.16,127.12,19.6661]
[1720139252264,52.8641,127.16,127.1,7.8672]
[1720139252459,7.865,127.15,127.09,19.6707]
[1720139252781,45.0,127.14,127.06,19.6747]
[1720139253149,45.0,127.14,127.01,31.1898]
[1720139253150,31.493523,127.26,127.11,4.2384]
[1720139253356,100.0,127.26,127.13,39.3287]
[1720139253549,7.8586,127.25,127.19,19.6544]
[1720139253758,100.0,127.29,127.19,19.6544]
[1720139253759,7.8592,127.24,127.19,19.6544]
[1720139253957,7.861,127.21,127.15,7.8645]
[1720139254173,100.0,127.22,127.13,19.6642]
[1720139254388,7.8645,127.16,127.1,19.6694]
[1720139254588,7.8641,127.16,127.1,19.6694]
[1720139254876,100.0,127.16,127.07,19.6736]
[1720139255072,7.8653,127.14,127.08,7.8689]
[1720139255389,45.0,127.13,127.09,7.8682]
[1720139255546,45.0,127.14,127.09,7.8682]
[1720139255749,45.0,127.14,127.08,7.8689]
[1720139255950,45.0,127.14,127.09,7.8678]
[1720139256151,45.0,127.14,127.09,19.6703]
[1720139256375,45.0,127.15,127.12,7.8664]
[1720139256576,45.0,127.15,127.11,7.867]
[1720139256974,45.0,127.15,127.1,7.8676]
[1720139257555,52.8648,127.15,127.09,27.5386]
[1720139257761,7.866,127.13,127.07,7.8691]
[1720139257957,45.0,127.12,127.08,7.8687]
[1720139258194,52.8651,127.15,127.09,7.8684]
[1720139258754,107.8653,127.14,127.08,27.5406]
[1720139258986,45.0,127.13,127.08,27.5406]
[1720139259156,45.0,127.13,127.05,19.6765]
[1720139259356,52.8661,127.13,127.07,7.8696]
[1720139259766,45.0,127.13,127.07,19.6733]
[1720139260091,45.0,127.14,127.09,7.868]
[1720139260273,52.8654,127.14,127.08,7.8688]
[1720139260453,45.0,127.14,127.09,7.8683]
[1720139260962,100.0,127.16,127.09,19.6704]
[1720139261168,7.8648,127.15,127.09,19.6704]
[1720139261375,107.8642,127.16,127.1,7.8676]
[1720139261656,7.8649,127.15,127.09,27.5386]
[1720139262175,7.862,127.2,127.08,39.343]
[1720139262481,7.8617,127.2,127.15,7.8642]
[1720139262651,7.8617,127.2,127.14,7.8652]
[1720139263279,7.8625,127.19,127.13,27.5301]
[1720139263470,7.8629,127.18,127.13,19.6643]
[1720139264282,7.8624,127.19,127.13,27.5302]
[1720139264687,45.0,127.18,127.13,27.5302]
[1720139264898,7.864,127.17,127.1,7.8673]
[1720139265179,45.0,127.16,127.06,19.6746]
[1720139265387,7.8661,127.13,127.07,7.8695]
[1720139265563,52.8666,127.12,127.07,7.8695]
[1720139265880,52.867,127.12,127.06,27.5447]
[1720139266266,51.0257,127.12,127.05,7.8708]
[1720139266469,7.8673,127.11,127.05,7.8708]
[1720139266666,45.0,127.1,127.03,19.6796]
[1720139266983,7.8691,127.08,127.03,27.5513]
[1720139267359,45.0,127.1,127.05,7.8707]
[1720139267564,45.0,127.1,127.04,7.8714]
[1720139267791,52.8679,127.1,127.04,7.8713]
[1720139268079,7.8695,127.08,127.02,7.8726]
[1720139268391,145.0,127.07,127.01,0.1]
[1720139268588,45.0,127.06,127.01,0.1]
[1720139268892,7.8701,127.07,127.01,7.9733]
[1720139269382,100.0,127.09,127.01,0.1]
[1720139269571,7.871,127.05,127.01,0.1]
[1720139269965,100.0,127.05,127.01,0.1]
[1720139270189,45.0,127.04,127.01,0.1]
[1720139270398,7.8723,127.03,127.01,0.1]
[1720139270798,52.8715,127.04,127.01,0.1]
[1720139271083,7.8725,127.03,127.01,0.1]
[1720139271493,45.0,127.04,127.01,0.1]
[1720139271786,7.8714,127.05,127.01,0.1]
[1720139272470,100.0,127.05,127.01,0.1]
[1720139272661,52.8717,127.04,127.01,0.1]
[1720139272861,45.0,127.04,127.01,0.1]
[1720139273062,8.19258642,127.07,127.01,7.9733]
[1720139273362,7.8697,127.07,127.02,19.6816]
[1720139273559,7.8692,127.08,127.02,27.5542]
[1720139273777,7.8692,127.08,127.02,27.5541]
[1720139273972,100.0,127.1,127.02,19.6816]
[1720139274200,7.8682,127.1,127.04,19.6778]
[1720139274488,7.8683,127.1,127.04,27.5488]
[1720139274993,106.0257,127.12,127.05,7.8707]
[1720139275368,7.8679,127.1,127.04,7.8713]
[1720139276188,7.8685,127.09,127.03,27.5512]
[1720139276390,7.8685,127.09,127.03,19.6792]
[1720139276576,7.8675,127.11,127.05,27.5475]
[1720139276778,7.8675,127.11,127.06,7.8702]
[1720139277086,7.8684,127.09,127.04,7.8713]
[1720139277293,7.8684,127.09,127.03,7.8719]
[1720139277501,7.8705,127.06,127.01,7.9733]
[1720139277699,7.8713,127.05,127.01,0.1]
[1720139277861,107.8694,127.08,127.01,19.783]
[1720139278176,52.8698,127.07,127.01,27.6562]
[1720139278591,7.8703,127.06,127.01,27.6562]
[1720139279302,7.8703,127.06,127.01,19.783]
[1720139279484,107.8703,127.06,127.01,19.783]
[1720139279988,7.871,127.05,127.01,0.1]
[1720139280293,45.0,127.05,127.01,0.1]
[1720139280894,7.8723,127.03,127.01,0.1]
[1720139281090,45.0,127.02,127.01,0.1]
[1720139281395,52.8727,127.02,127.01,0.1]
[1720139281562,7.871,127.05,127.01,0.1]
[1720139281766,45.0,127.04,127.01,0.1]
[1720139282009,7.8726,127.03,127.01,0.1]
[1720139282295,52.8717,127.04,127.01,0.1]
[1720139282478,45.0,127.04,127.01,0.1]
[1720139283279,7.8727,127.02,127.01,0.1]
[1720139283482,45.0,127.04,127.01,0.1]
[1720139283989,106.19346557,127.09,127.01,0.1]
[1720139284188,34.9782815,127.11,127.04,19.6782]
[1720139284189,3.4436375,127.11,127.04,19.6782]
[1720139284404,7.8697,127.07,127.02,7.8725]
[1720139284696,100.0,127.1,127.03,7.8718]
[1720139284697,7.869,127.09,127.03,7.8718]
[1720139285075,100.0,127.1,127.01,0.1]
[1720139285587,100.0,127.05,127.01,0.1]
[1720139286089,7.8727,127.02,127.01,0.1]
[1720139286295,7.872,127.04,127.01,0.1]
[1720139286471,100.0,127.09,127.01,0.1]
[1720139286675,100.0,127.07,127.01,0.1]
[1720139286873,45.0,127.06,127.01,0.1]
[1720139287084,100.0,127.05,127.01,0.1]
[1720139287275,45.0,127.04,127.01,0.1]
[1720139287480,52.8716,127.04,127.01,0.1]
[1720139287871,45.0,127.04,127.01,0.1]
[1720139288066,7.8702,127.07,127.01,0.1]
[1720139288296,100.0,127.09,127.01,0.1]
[1720139288477,7.8679,127.1,127.04,7.871]
[1720139288779,100.0,127.11,127.03,19.6793]
[1720139288985,6.0257,127.12,127.03,19.6793]
[1720139289177,7.8682,127.1,127.03,19.6793]
[1720139289395,7.8684,127.09,127.03,27.5513]
[1720139289605,7.8698,127.07,127.01,15.8267]
[1720139289789,7.8691,127.08,127.01,15.8267]
[1720139289971,19.6703,127.1,127.01,0.1]
[1720139290169,7.8682,127.1,127.04,7.8714]
[1720139290402,7.8685,127.09,127.03,7.8717]
[1720139290606,6.0257,127.12,127.02,19.681]
[1720139290896,7.8679,127.1,127.04,7.871]
[1720139291121,8.19009741,127.14,127.01,51.4149]
[1720139291393,100.0,127.15,127.02,59.361]
[1720139291602,7.8664,127.13,127.07,7.8696]
[1720139291795,7.8672,127.11,127.05,27.5468]
[1720139291971,7.8673,127.11,127.05,27.5471]
[1720139292174,7.8673,127.11,127.05,27.5468]
[1720139292388,7.8671,127.12,127.05,27.5472]
[1720139292592,100.0,127.13,127.05,27.5472]
[1720139292905,107.8676,127.11,127.05,27.5472]
[1720139293579,100.0,127.11,127.02,19.6809]
[1720139293788,100.0,127.11,127.01,4.4249]
[1720139293995,107.8673,127.11,127.05,7.8704]
[1720139295097,7.8667,127.12,127.06,7.87]
[1720139295408,6.0736,127.14,127.03,39.3602]
[1720139295409,7.8658,127.14,127.03,39.3602]
[1720139295912,7.8658,127.14,127.04,20.0]
[1720139296221,7.866,127.13,127.08,27.541]
[1720139296395,7.868,127.1,127.05,19.6762]
[1720139296584,100.0,127.14,127.05,19.6762]
[1720139296888,45.0,127.13,127.07,19.6737]
[1720139297091,108.18712087,127.16,127.01,51.4149]
[1720139297307,7.8672,127.11,127.01,4.4249]
[1720139297480,100.0,127.1,127.01,4.4249]
[1720139297683,100.0,127.1,127.02,7.8727]
[1720139297684,7.8696,127.08,127.02,7.8727]
[1720139297881,7.8702,127.06,127.01,27.6554]
[1720139298109,7.8697,127.07,127.02,7.8726]
[1720139298315,100.0,127.08,127.01,0.1]
[1720139298618,7.8711,127.05,127.01,0.1]
[1720139299011,145.0,127.04,127.01,0.1]
[1720139299381,7.8727,127.02,127.01,0.1]
[1720139299599,152.8719,127.04,127.01,0.1]
[1720139299804,45.0,127.04,127.01,0.1]
[1720139300591,52.871,127.05,127.01,0.1]
[1720139300805,7.8723,127.03,127.01,0.1]
[1720139301113,7.8716,127.04,127.01,0.1]
[1720139301605,52.8711,127.05,127.01,0.1]
[1720139301825,7.8715,127.04,127.01,0.1]
[1720139302185,100.0,127.04,127.01,0.1]
[1720139302384,45.0,127.03,127.01,0.1]
[1720139302608,52.8722,127.03,127.01,0.1]
[1720139302799,45.0,127.03,127.01,0.1]
[1720139302996,7.8722,127.03,127.01,0.1]
[1720139303240,45.0,127.02,127.01,0.1]
[1720139303499,7.8715,127.04,127.01,0.1]
[1720139303707,7.8703,127.06,127.01,7.9729]
[1720139303902,7.8696,127.07,127.02,7.8727]
[1720139304103,7.8691,127.08,127.02,7.8727]
[1720139304411,7.8691,127.08,127.01,19.783]
[1720139304412,106.1693,127.1,127.01,19.783]
[1720139304719,7.8704,127.06,127.01,19.783]
[1720139304887,7.8709,127.05,127.01,0.1]
[1720139305088,7.8705,127.06,127.01,0.1]
[1720139305293,7.8709,127.05,127.01,0.1]
[1720139305693,6.1693,127.1,127.01,0.1]
[1720139305694,100.0,127.06,127.01,0.1]
[1720139305902,7.8727,127.02,127.01,0.1]
[1720139306415,52.8727,127.02,127.01,0.1]
[1720139306625,7.8722,127.03,127.01,0.1]
[1720139306795,7.8716,127.04,127.01,0.1]
[1720139307311,7.871,127.05,127.01,0.1]
[1720139307738,145.4893,127.1,127.01,19.7829]
[1720139308018,7.8722,127.03,127.01,0.1]
[1720139308226,7.8727,127.02,127.01,0.1]
[1720139309103,52.8727,127.02,127.01,0.1]
[1720139309898,152.8727,127.02,127.01,0.1]
[1720139312797,159.4441,127.02,127.01,0.1]
[1720139313263,100.0,127.0,126.92,19.6963]
[1720139313403,45.0,126.99,126.93,7.8783]
[1720139313814,7.8756,126.98,126.92,27.5751]
[1720139314013,7.8756,126.98,126.93,7.8782]
[1720139314402,45.0,126.99,126.94,7.8776]
[1720139314602,27.5702,127.01,126.95,7.877]
[1720139314803,106.5714,127.02,126.94,27.5712]
[1720139315025,7.8747,126.99,126.94,19.6937]
[1720139315210,7.8753,126.98,126.93,7.8782]
[1720139315414,7.8753,126.98,126.92,7.8788]
[1720139315932,7.8753,126.98,126.93,7.8782]
[1720139316117,107.8745,127.0,126.93,7.8782]
[1720139316326,100.0,127.0,126.93,7.8782]
[1720139316505,45.0,126.99,126.93,7.8782]
[1720139316706,7.8754,126.98,126.92,7.8789]
[1720139317044,45.0,126.99,126.87,0.04670471]
[1720139317045,7.8814,126.88,126.87,0.04670471]
[1720139318041,52.8814,126.88,126.87,0.04670471]
[1720139318549,7.8814,126.88,126.87,0.04670471]
[1720139318722,52.8814,126.88,126.87,0.04670471]
[1720139319526,7.8809,126.89,126.87,0.04670471]